bitfinex/quotes_ETHUSD_20250328
["timestamp","ask_amount","ask_price","bid_price","bid_amount"]
[1743203526326,10.51378,1902.3,1902.1,4.95]
[1743203526495,6.4928064,1902.3,1902.1,4.95]
[1743203526691,11.7497864,1902.3,1902.1,4.95]
[1743203527033,5.25707,1902.2,1902.1,4.95]
[1743203529754,6.4928064,1902.3,1902.1,4.95]
[1743203529922,11.7497864,1902.3,1902.1,4.95]
[1743203530218,11.7497464,1902.3,1902.1,4.95]
[1743203530557,6.4928064,1902.3,1902.1,4.95]
[1743203531456,11.7497964,1902.3,1902.1,4.95]
[1743203531746,1.17497964,1902.2,1902.1,4.95]
[1743203532557,12.359774,1902.4,1902.1,4.95]
[1743203532908,5.25679,1902.3,1902.1,4.95]
[1743203533756,1.846384,1902.4,1902.1,10.20724]
[1743203533977,10.51282,1902.5,1902.1,10.96374]
[1743203534591,5.25633,1902.5,1902.1,10.96374]
[1743203534892,10.51281,1902.5,1902.1,10.96374]
[1743203535048,5.25653,1902.4,1902.1,10.96374]
[1743203536024,5.25653,1902.4,1902.1,5.7065]
[1743203536170,5.25707,1902.2,1902.1,4.95]
[1743203538127,5.25707,1902.2,1902.1,5.09723363]
[1743203538917,5.25707,1902.2,1902.1,0.14723363]
[1743203539118,6.04327,1902.2,1902.1,0.14723363]
[1743203539318,6.04413,1901.9,1901.7,4.949]
[1743203539674,6.04413,1901.9,1901.8,0.14697384]
[1743203539675,0.7862,1901.9,1901.8,0.14697384]
[1743203539824,5.2577,1902.0,1901.8,0.14697384]
[1743203541231,5.25789,1901.9,1901.8,0.14697384]
[1743203543145,9.00413221,1901.9,1901.8,0.14697384]
[1743203543422,10.34033221,1901.9,1901.8,0.14697384]
[1743203543621,10.34033221,1901.9,1901.6,27.825]
[1743203543622,5.25845,1901.7,1901.6,27.825]
[1743203543991,5.25877,1901.6,1901.3,4.949]
[1743203544491,10.51776,1901.6,1901.3,4.949]
[1743203544905,5.25904,1901.5,1901.3,4.949]
[1743203545106,5.25904,1901.5,1901.2,0.7969]
[1743203545405,5.25904,1901.5,1901.3,4.949]
[1743203545598,5.25904,1901.5,1901.2,0.7969]
[1743203545792,5.25904,1901.5,1901.2,5.7459]
[1743203547413,10.51762,1901.6,1901.2,11.00562]
[1743203547618,5.25876,1901.6,1901.2,11.00556]
[1743203548620,6.04439,1901.8,1901.3,0.05259076]
[1743203548824,5.25819,1901.8,1901.5,0.7969]
[1743203549393,5.25846,1901.7,1901.5,0.7969]
[1743203550392,10.51711,1901.7,1901.5,0.7969]
[1743203550826,5.25846,1901.7,1901.5,0.7969]
[1743203551906,10.51711,1901.7,1901.5,0.7969]
[1743203552237,11.568821,1901.7,1901.3,6.03651]
[1743203552433,11.568821,1901.7,1901.3,6.08909962]
[1743203552628,11.568821,1901.7,1901.3,6.03651]
[1743203552931,5.25876,1901.6,1901.3,6.03651]
[1743203553103,5.25876,1901.6,1901.4,0.14904245]
[1743203553434,5.25876,1901.6,1901.3,6.03651]
[1743203553593,5.25876,1901.6,1901.5,0.14903246]
[1743203553797,5.25876,1901.6,1901.3,6.03651]
[1743203553798,5.25876,1901.6,1901.4,0.14904245]
[1743203554130,5.25876,1901.6,1901.5,0.14903246]
[1743203554330,5.25876,1901.6,1901.3,6.03651]
[1743203554643,5.25876,1901.6,1901.4,0.14904245]
[1743203554803,6.310171,1901.7,1901.4,0.14904245]
[1743203555002,5.25846,1901.7,1901.3,6.03651]
[1743203555203,5.25846,1901.7,1901.5,0.14903246]
[1743203555433,5.25846,1901.7,1901.4,0.14904245]
[1743203555729,10.51712,1901.7,1901.5,0.14903246]
[1743203556104,10.51712,1901.7,1901.6,0.14902247]
[1743203556429,6.310172,1901.7,1901.3,6.08909952]
[1743203556608,5.25846,1901.7,1901.6,0.14902247]
[1743203556814,5.25846,1901.7,1901.4,5.25925]
[1743203557121,5.25846,1901.7,1901.5,0.14903246]
[1743203559552,5.25872,1901.6,1901.3,6.03656]
[1743203560671,5.25846,1901.7,1901.3,6.03656]
[1743203560969,5.25846,1901.7,1901.4,0.14967053]
[1743203561169,10.5171,1901.7,1901.4,0.14967053]
[1743203561470,11.3028,1901.7,1901.3,6.03656]
[1743203561648,11.3028,1901.7,1901.5,0.14966055]
[1743203561971,12.43308,1901.7,1901.6,0.14965056]
[1743203562369,12.43308,1901.7,1901.3,6.03656]
[1743203562669,6.04416,1901.7,1901.6,0.14965056]
[1743203562974,5.25846,1901.7,1901.6,0.14965056]
[1743203563180,5.25846,1901.7,1901.3,6.03656]
[1743203563505,5.25846,1901.7,1901.6,0.14965056]
[1743203563880,5.25846,1901.7,1901.3,6.03656]
[1743203564072,5.25846,1901.7,1901.6,0.15254886]
[1743203564264,5.25873,1901.6,1901.3,6.03656]
[1743203565779,5.25846,1901.7,1901.3,6.03656]
[1743203566147,10.51709,1901.7,1901.3,6.03656]
[1743203566579,5.25875,1901.6,1901.3,6.03656]
[1743203567779,5.25875,1901.6,1901.3,0.7771]
[1743203568077,11.569451,1901.6,1901.3,4.949]
[1743203568246,5.259,1901.5,1901.4,0.15256883]
[1743203568673,5.259,1901.5,1901.3,4.949]
[1743203568877,5.259,1901.5,1901.4,0.15256883]
[1743203569181,5.259,1901.5,1901.3,4.949]
[1743203569381,5.259,1901.5,1901.4,0.15256883]
[1743203569869,5.259,1901.5,1901.3,4.949]
[1743203570070,5.259,1901.5,1901.4,0.15256883]
[1743203570383,5.259,1901.5,1901.3,4.949]
[1743203570554,5.2588,1901.6,1901.4,0.7951]
[1743203570753,5.2588,1901.6,1901.5,0.15255885]
[1743203571660,5.25857,1901.7,1901.5,0.15255885]
[1743203571961,6.310248,1901.7,1901.5,0.15255885]
[1743203572179,1.051678,1901.7,1901.5,0.15255885]
[1743203572383,10.51675,1901.8,1901.5,0.15255885]
[1743203572785,5.25833,1901.8,1901.5,0.15255885]
[1743203575000,6.01952,1902.2,1901.6,0.7951]
[1743203575151,5.25743,1902.1,1901.7,5.25829]
[1743203575351,4.29624221,1902.4,1902.0,5.25746]
[1743203575352,6.01894,1902.4,1902.0,5.25746]
[1743203575675,5.25625,1902.5,1902.1,6.20472233]
[1743203575873,5.25654,1902.4,1902.1,0.94750233]
[1743203576074,5.781945,1902.5,1902.1,6.20472233]
[1743203576279,5.781945,1902.5,1902.1,11.15372233]
[1743203577089,6.01828,1902.6,1902.1,11.15372233]
[1743203577294,11.2745,1902.6,1902.2,5.25706]
[1743203577596,6.01828,1902.6,1902.3,0.15233405]
[1743203577889,10.51163,1902.7,1902.3,5.40902405]
[1743203578091,5.2557,1902.7,1902.3,5.40902405]
[1743203578511,10.51161,1902.7,1902.3,5.40902405]
[1743203578791,12.28407141,1902.7,1902.3,5.40902405]
[1743203578974,5.25597,1902.6,1902.3,0.15233405]
[1743203579367,5.25597,1902.6,1902.2,5.257]
[1743203579590,5.25597,1902.6,1902.3,0.15233405]
[1743203580463,10.51215,1902.6,1902.3,0.15233405]
[1743203580665,5.25626,1902.5,1902.3,0.15233405]
[1743203581006,5.25626,1902.5,1902.1,11.00122]
[1743203581296,5.25626,1902.5,1902.4,0.15232407]
[1743203581774,5.25626,1902.5,1902.1,11.00122]
[1743203581958,5.25626,1902.5,1902.2,0.15234403]
[1743203582164,6.05906,1902.5,1902.1,11.00122]
[1743203582393,6.05906,1902.5,1902.2,0.15234403]
[1743203582597,6.05906,1902.5,1902.1,11.00122]
[1743203582770,6.05906,1902.5,1902.2,0.15234403]
[1743203583093,6.05906,1902.5,1902.1,12.627102]
[1743203583299,6.05906,1902.5,1902.3,0.15233405]
[1743203583598,6.05906,1902.5,1902.4,0.15232407]
[1743203583767,6.05906,1902.5,1902.1,12.627102]
[1743203583968,11.3155,1902.5,1902.1,12.627102]
[1743203584167,11.3155,1902.5,1902.2,0.15234403]
[1743203584998,6.05906,1902.5,1902.3,0.15233405]
[1743203585177,6.05906,1902.5,1902.1,11.00122]
[1743203585380,6.05906,1902.5,1902.2,0.15234403]
[1743203585577,6.05906,1902.5,1902.1,11.00122]
[1743203585777,11.3155,1902.5,1902.2,0.14930086]
[1743203585978,6.05906,1902.5,1902.1,11.00122]
[1743203586201,6.05906,1902.5,1902.2,0.14930086]
[1743203586387,6.05906,1902.5,1902.1,11.00122]
[1743203586564,6.05906,1902.5,1902.2,0.14930086]
[1743203586767,6.05906,1902.5,1902.1,11.00122]
[1743203586996,11.3155,1902.5,1902.2,0.14930086]
[1743203587296,0.8028,1902.5,1902.1,5.7441]
[1743203587489,5.25672,1902.4,1902.3,0.14929088]
[1743203587687,5.25679,1902.3,1902.2,0.14930086]
[1743203587889,5.25679,1902.3,1902.0,4.947]
[1743203588089,10.51379,1902.3,1902.0,4.947]
[1743203588285,5.25679,1902.3,1902.0,4.947]
[1743203588993,10.51377,1902.3,1902.0,4.947]
[1743203589187,5.25707,1902.2,1902.0,4.947]
[1743203590104,5.25679,1902.3,1902.0,4.947]
[1743203590105,5.25681,1902.3,1902.0,4.947]
[1743203590496,10.51379,1902.3,1902.0,4.947]
[1743203590873,5.25681,1902.3,1902.0,4.947]
[1743203591084,10.5138,1902.3,1902.0,4.947]
[1743203592007,5.25707,1902.2,1902.0,4.947]
[1743203593606,5.25681,1902.3,1902.0,4.947]
[1743203594574,5.25652,1902.4,1902.0,11.02946]
[1743203594788,5.25652,1902.4,1902.0,16.28694]
[1743203594986,6.01199,1902.7,1902.3,5.25676]
[1743203595311,5.25569,1902.7,1902.3,5.25669]
[1743203596017,10.51157,1902.7,1902.3,5.25669]
[1743203596816,5.25569,1902.7,1902.3,10.51334]
[1743203597117,5.25548,1902.8,1902.4,5.2564]
[1743203597288,5.255,1903.0,1902.6,5.25583]
[1743203597610,10.51006,1903.0,1902.7,0.8249]
[1743203598011,10.51002,1903.0,1902.8,0.14489435]
[1743203598409,5.25513,1902.9,1902.8,0.14489435]
[1743203598579,5.25513,1902.9,1902.5,5.25611]
[1743203598580,5.25552,1902.8,1902.5,0.8249]
[1743203598781,5.25586,1902.7,1902.6,0.14433498]
[1743203598980,10.51178,1902.7,1902.4,4.947]
[1743203599180,10.51178,1902.7,1902.5,0.14434496]
[1743203599377,6.01226,1902.6,1902.5,0.14434496]
[1743203599591,5.25654,1902.4,1902.1,5.7719]
[1743203599912,5.25654,1902.4,1902.2,0.14437489]
[1743203600111,0.7563,1902.3,1902.2,0.14437489]
[1743203600281,0.7563,1902.3,1902.1,4.947]
[1743203600481,0.7563,1902.3,1902.2,0.14437489]
[1743203600809,0.7563,1902.3,1902.1,4.947]
[1743203601016,0.7563,1902.3,1902.2,0.14437489]
[1743203601208,0.7563,1902.3,1902.1,4.947]
[1743203601507,6.01309,1902.3,1902.2,0.14437489]
[1743203601907,6.01309,1902.3,1902.1,4.947]
[1743203602215,6.01309,1902.3,1902.2,0.14437489]
[1743203602392,6.01309,1902.3,1902.1,4.947]
[1743203602592,6.01309,1902.3,1902.2,0.14437489]
[1743203602792,6.01309,1902.3,1902.1,4.947]
[1743203602994,6.01309,1902.3,1902.2,0.14437489]
[1743203603189,6.01309,1902.3,1902.1,4.947]
[1743203603392,6.01309,1902.3,1902.2,0.14437489]
[1743203603594,6.01309,1902.3,1902.1,4.947]
[1743203603784,6.01309,1902.3,1902.2,0.14437489]
[1743203603985,6.01309,1902.3,1902.1,4.947]
[1743203604185,6.01309,1902.3,1902.2,0.14437489]
[1743203604484,6.01309,1902.3,1902.1,4.947]
[1743203604686,6.01309,1902.3,1902.2,0.14437489]
[1743203605018,6.01309,1902.3,1902.1,4.947]
[1743203605182,0.7563,1902.3,1902.2,0.14437489]
[1743203605386,0.7563,1902.3,1902.1,4.947]
[1743203605609,0.7563,1902.3,1902.2,0.14437489]
[1743203605818,0.7563,1902.3,1902.1,4.947]
[1743203606115,0.7563,1902.3,1902.2,0.14437489]
[1743203606415,0.7563,1902.3,1902.1,4.947]
[1743203606616,0.7563,1902.3,1902.2,0.14437489]
[1743203606814,6.01309,1902.3,1902.1,4.947]
[1743203607018,11.27008,1902.3,1902.2,0.14437489]
[1743203607217,12.397088,1902.3,1902.2,0.14437489]
[1743203607409,12.397088,1902.3,1902.1,4.947]
[1743203607611,12.397088,1902.3,1902.2,0.14437489]
[1743203607806,12.397088,1902.3,1902.1,4.947]
[1743203608006,5.25707,1902.2,1902.1,4.947]
[1743203611326,5.25707,1902.2,1901.5,33.084]
[1743203611327,1.2397168,1902.2,1901.6,0.7971]
[1743203611512,5.25858,1901.7,1901.5,27.825]
[1743203611720,6.02528,1901.7,1901.5,27.825]
[1743203612211,11.28395,1901.7,1901.5,27.825]
[1743203612611,6.02528,1901.7,1901.5,27.825]
[1743203613004,11.28395,1901.7,1901.6,0.13347087]
[1743203613209,12.78696922,1901.7,1901.6,0.13347087]
[1743203616600,5.25858,1901.7,1901.6,0.13347087]
[1743203623100,5.25892,1901.6,1901.4,4.946]
[1743203623432,5.25888,1901.6,1901.4,4.946]
[1743203624232,5.25846,1901.7,1901.4,4.946]
[1743203624435,5.25874,1901.6,1901.4,4.946]
[1743203624726,5.25846,1901.7,1901.4,5.966551]
[1743203624933,5.25818,1901.8,1901.5,0.8295]
[1743203625233,10.51658,1901.8,1901.5,0.8295]
[1743203625438,5.25848,1901.7,1901.5,0.8295]
[1743203627433,5.25872,1901.6,1901.3,0.8295]
[1743203627638,5.259,1901.5,1901.4,4.948]
[1743203628023,5.259,1901.5,1901.4,5.08878414]
[1743203629037,5.259,1901.5,1901.4,0.14078414]
[1743203629242,5.259,1901.5,1901.3,4.948]
[1743203629407,5.259,1901.5,1901.4,0.14078414]
[1743203629732,5.259,1901.5,1901.3,4.948]
[1743203629940,5.259,1901.5,1901.4,0.14078414]
[1743203630738,10.51821,1901.5,1901.2,4.948]
[1743203631042,5.25928,1901.4,1901.3,0.14079413]
[1743203631632,11.31648,1901.4,1901.1,4.948]
[1743203631938,9.80332221,1901.4,1901.2,0.12969378]
[1743203632312,5.26005,1901.2,1900.9,33.6105]
[1743203632511,5.26005,1901.2,1900.9,32.781]
[1743203632512,5.26012,1901.1,1900.9,32.781]
[1743203633440,5.26038,1901.0,1900.9,27.833]
[1743203636147,6.05782,1901.1,1900.9,27.833]
[1743203637052,11.31813,1901.1,1900.9,27.833]
[1743203637341,6.05782,1901.1,1900.9,27.833]
[1743203637744,5.26012,1901.1,1900.9,27.833]
[1743203637942,5.25989,1901.2,1900.9,27.833]
[1743203638148,11.31932,1901.4,1900.9,37.727241]
[1743203638313,5.25938,1901.4,1901.0,5.26028]
[1743203638518,5.25958,1901.3,1900.9,37.727241]
[1743203639517,5.25958,1901.3,1900.9,42.987711]
[1743203640249,6.32139598,1901.4,1901.0,5.26019]
[1743203640445,6.32139598,1901.4,1901.0,9.08547455]
[1743203640650,6.32139598,1901.4,1901.0,14.2931171]
[1743203640950,6.32139598,1901.4,1901.0,9.0328771]
[1743203641154,11.58086598,1901.4,1901.0,9.0328771]
[1743203641449,5.25961,1901.3,1901.0,9.0328771]
[1743203641834,1.06201598,1901.4,1901.1,6.16336771]
[1743203642034,5.25877,1901.6,1901.2,0.7734]
[1743203642248,5.25877,1901.6,1901.2,10.98114]
[1743203642465,5.25877,1901.6,1901.2,16.24085]
[1743203642920,5.25877,1901.6,1901.3,5.25954]
[1743203643121,5.25877,1901.6,1901.3,5.39169347]
[1743203643337,5.25877,1901.6,1901.3,0.13215347]
[1743203643752,5.25877,1901.6,1901.3,5.39168347]
[1743203643928,5.25877,1901.6,1901.3,0.13215347]
[1743203644449,5.25848,1901.7,1901.3,5.39157347]
[1743203644654,6.0118,1901.9,1901.4,0.7734]
[1743203644954,6.01156,1902.0,1901.5,5.39110349]
[1743203645127,5.25766,1902.0,1901.6,10.2066]
[1743203645332,5.25734,1902.1,1901.7,6.03183]
[1743203645527,5.25734,1902.1,1901.7,6.16331595]
[1743203645851,6.684173,1902.1,1901.7,6.16331595]
[1743203646455,6.684173,1902.1,1901.7,0.90488595]
[1743203646659,5.25773,1902.0,1901.7,0.90488595]
[1743203647924,5.25773,1902.0,1901.7,6.16327595]
[1743203648326,5.25735,1902.1,1901.7,6.21585542]
[1743203648541,5.25735,1902.1,1901.7,7.80533749]
[1743203649451,5.25735,1902.1,1901.8,5.25816]
[1743203649755,5.25735,1902.1,1901.9,0.13146598]
[1743203650150,5.25735,1902.1,1901.7,7.67385154]
[1743203650456,5.25735,1902.1,1901.7,12.93213154]
[1743203650622,5.25735,1902.1,1901.8,1.42468911]
[1743203651057,5.25735,1902.1,1901.8,0.13147596]
[1743203655775,10.51492,1902.1,1901.8,0.13147596]
[1743203655973,5.2578,1902.0,1901.8,0.13147596]
[1743203656149,5.2578,1902.0,1901.6,10.20561]
[1743203656339,5.2578,1902.0,1901.7,0.1283007]
[1743203656869,5.2578,1902.0,1901.8,0.12829071]
[1743203657368,5.2578,1902.0,1901.6,10.20561]
[1743203657661,10.51562,1902.0,1901.7,1.020561]
[1743203657968,10.51562,1902.0,1901.8,0.12829071]
[1743203658362,10.51562,1902.0,1901.9,0.12828073]
[1743203658582,10.51562,1902.0,1901.6,10.20561]
[1743203658740,10.51562,1902.0,1901.7,0.1283007]
[1743203658938,10.51562,1902.0,1901.6,10.20561]
[1743203659173,10.51562,1902.0,1901.7,0.1283007]
[1743203659376,5.2578,1902.0,1901.7,0.1283007]
[1743203659566,5.2578,1902.0,1901.6,10.20561]
[1743203659774,10.51562,1902.0,1901.7,0.1283007]
[1743203659935,5.25796,1901.9,1901.7,0.1283007]
[1743203660134,5.25796,1901.9,1901.6,10.20561]
[1743203660365,5.25796,1901.9,1901.7,0.1283007]
[1743203660571,5.25796,1901.9,1901.6,4.947]
[1743203660869,5.25796,1901.9,1901.7,0.1283007]
[1743203661167,5.25796,1901.9,1901.6,4.947]
[1743203661470,5.25796,1901.9,1901.7,0.1283007]
[1743203661667,10.51606,1901.9,1901.6,4.947]
[1743203661875,5.25796,1901.9,1901.7,0.1283007]
[1743203662166,5.25796,1901.9,1901.8,0.12829071]
[1743203662167,10.51611,1901.9,1901.8,0.12829071]
[1743203662368,11.567721,1901.9,1901.8,0.12829071]
[1743203662871,6.309571,1901.9,1901.6,4.947]
[1743203663072,5.25796,1901.9,1901.7,0.1283007]
[1743203663371,5.25796,1901.9,1901.6,10.20569]
[1743203663539,5.25765,1902.0,1901.8,0.12829071]
[1743203663736,5.25765,1902.0,1901.9,0.12828073]
[1743203663737,10.51552,1902.0,1901.9,0.12828073]
[1743203663937,5.25765,1902.0,1901.6,10.20554]
[1743203664163,10.51548,1902.0,1901.7,0.1283007]
[1743203664347,5.25796,1901.9,1901.6,4.947]
[1743203664550,5.25796,1901.9,1901.7,0.1283007]
[1743203664773,5.25796,1901.9,1901.6,10.20569]
[1743203665077,5.25796,1901.9,1901.7,0.1283007]
[1743203665276,5.25796,1901.9,1901.6,10.20569]
[1743203665477,5.25796,1901.9,1901.7,0.1283007]
[1743203665651,5.25817,1901.8,1901.6,4.947]
[1743203665851,5.25861,1901.7,1901.3,6.08442]
[1743203666066,10.51725,1901.7,1901.4,4.946]
[1743203666271,5.25861,1901.7,1901.4,4.946]
[1743203668589,6.05767,1901.8,1901.4,10.20525]
[1743203668777,5.25847,1901.7,1901.4,10.20525]
[1743203670657,5.25847,1901.7,1901.4,11.834206]
[1743203672651,5.25847,1901.7,1901.4,6.574956]
[1743203672974,0.7995,1901.8,1901.5,0.12798253]
[1743203673277,5.25896,1901.6,1901.3,5.7719]
[1743203673483,5.25904,1901.5,1901.4,0.12799252]
[1743203673774,5.25904,1901.5,1901.3,4.947]
[1743203673983,11.29789,1901.5,1901.2,27.832]
[1743203674180,11.29789,1901.5,1901.4,0.12799252]
[1743203674356,6.03864,1901.5,1901.3,0.12800251]
[1743203674678,6.03864,1901.5,1901.4,0.12799252]
[1743203674887,5.25947,1901.4,1901.1,5.7592]
[1743203675047,5.25944,1901.4,1901.1,5.7592]
[1743203675253,5.25944,1901.4,1900.9,6.07277]
[1743203675452,5.2597,1901.3,1901.0,4.947]
[1743203675781,5.2597,1901.3,1901.0,10.20735]
[1743203676982,5.25944,1901.4,1901.0,10.20735]
[1743203677354,10.51894,1901.4,1901.0,10.20735]
[1743203679285,5.25966,1901.3,1901.0,4.947]
[1743203680089,10.51945,1901.3,1900.9,6.07272]
[1743203680286,10.51945,1901.3,1901.0,4.947]
[1743203680790,10.51946,1901.3,1901.0,4.947]
[1743203681756,5.25995,1901.2,1900.9,0.8122]
[1743203681982,5.26011,1901.1,1900.9,0.8122]
[1743203682175,5.26011,1901.1,1900.9,4.947]
[1743203682379,5.26038,1901.0,1900.9,4.947]
[1743203688091,5.26038,1901.0,1900.9,5.07861411]
[1743203688392,5.26038,1901.0,1900.9,0.13161411]
[1743203688892,5.26068,1900.9,1900.7,27.833]
[1743203690467,10.52088,1901.0,1900.7,27.833]
[1743203690666,5.26038,1901.0,1900.7,27.833]
[1743203690999,10.52097,1901.0,1900.7,27.833]
[1743203691500,10.52097,1901.0,1900.6,10.20943]
[1743203691991,5.26067,1900.9,1900.6,10.20943]
[1743203692198,5.26055,1901.0,1900.6,10.20943]
[1743203692567,10.52113,1901.0,1900.6,10.20943]
[1743203692766,5.26055,1901.0,1900.6,10.20943]
[1743203693872,5.26077,1900.9,1900.6,10.20943]
[1743203694072,5.26077,1900.9,1900.6,11.836612]
[1743203696892,5.26055,1901.0,1900.7,5.26119]
[1743203697193,6.06,1901.4,1901.3,5.25955]
[1743203697390,11.31235,1901.6,1901.2,5.25971]
[1743203697595,5.25905,1901.5,1901.2,5.25971]
[1743203698300,10.51825,1901.5,1901.1,10.20804]
[1743203700112,5.25905,1901.5,1901.1,10.20804]
[1743203700510,5.25905,1901.5,1901.1,11.88753264]
[1743203700683,5.25905,1901.5,1901.1,11.834937]
[1743203701001,5.25934,1901.4,1901.1,6.574897]
[1743203701213,5.25934,1901.4,1901.1,4.948]
[1743203701509,10.51885,1901.4,1901.0,11.0091]
[1743203701687,5.25934,1901.4,1901.0,16.26932]
[1743203702298,5.25934,1901.4,1901.0,16.26921]
[1743203702506,5.25934,1901.4,1901.0,11.00899]
[1743203703015,5.25934,1901.4,1901.1,0.13198037]
[1743203703620,5.2596,1901.3,1901.1,0.13198037]
[1743203703779,6.061,1901.3,1901.1,0.13198037]
[1743203704604,5.25983,1901.2,1900.9,10.20765]
[1743203704909,6.061,1901.3,1901.0,0.13204088]
[1743203705906,0.8014,1901.3,1901.0,0.13204088]
[1743203706116,0.8014,1901.3,1901.0,5.39223088]
[1743203707487,6.07682,1901.6,1901.2,5.25983]
[1743203707808,6.07682,1901.6,1901.3,0.1320109]
[1743203708187,5.25901,1901.5,1901.3,0.1320109]
[1743203708593,10.5182,1901.5,1901.3,0.1320109]
[1743203708894,5.25901,1901.5,1901.1,5.26011]
[1743203709105,5.25901,1901.5,1901.2,0.13202089]
[1743203709484,5.25901,1901.5,1901.1,5.25993]
[1743203709689,5.25901,1901.5,1901.2,0.13202089]
[1743203709896,5.25901,1901.5,1901.1,5.25993]
[1743203710092,5.25901,1901.5,1901.2,0.13202089]
[1743203710308,5.25901,1901.5,1901.1,10.51988]
[1743203710497,5.25901,1901.5,1901.3,0.1320109]
[1743203710695,6.392575,1901.5,1901.1,10.51988]
[1743203710900,5.25901,1901.5,1901.2,0.13202089]
[1743203711113,5.25901,1901.5,1901.1,5.25993]
[1743203711316,5.25901,1901.5,1901.3,0.1320109]
[1743203711525,10.51816,1901.5,1901.2,0.13202089]
[1743203711808,5.25901,1901.5,1901.4,0.13200091]
[1743203712007,10.51822,1901.5,1901.4,0.13200091]
[1743203712211,10.51822,1901.5,1901.1,5.25993]
[1743203712513,5.25936,1901.4,1901.2,0.13202089]
[1743203713014,5.25936,1901.4,1901.3,0.1320109]
[1743203713215,5.25936,1901.4,1901.1,5.25993]
[1743203713514,5.25936,1901.4,1901.2,0.13202089]
[1743203713914,5.25936,1901.4,1901.1,5.25993]
[1743203714103,5.25936,1901.4,1901.3,0.1320109]
[1743203714282,5.25936,1901.4,1901.2,0.13202089]
[1743203714485,5.25936,1901.4,1901.1,5.25993]
[1743203714785,5.25936,1901.4,1901.2,0.13202089]
[1743203714983,5.25936,1901.4,1901.1,5.25993]
[1743203715221,5.25936,1901.4,1901.2,0.13202089]
[1743203715516,5.25936,1901.4,1901.1,5.25993]
[1743203715717,5.25936,1901.4,1901.3,0.1320109]
[1743203715919,5.25936,1901.4,1901.2,0.13202089]
[1743203716138,5.25936,1901.4,1901.3,0.1320109]
[1743203716414,5.25936,1901.4,1901.0,6.04672]
[1743203716578,5.25936,1901.4,1901.0,6.64680451]
[1743203716782,5.25936,1901.4,1901.1,0.13203089]
[1743203716986,5.25983,1901.2,1901.1,0.13203089]
[1743203717419,10.51985,1901.2,1900.9,4.947]
[1743203717633,10.51985,1901.2,1901.1,0.13222402]
[1743203717779,10.51985,1901.2,1900.9,4.947]
[1743203717780,11.650905,1901.2,1901.0,0.13223402]
[1743203717980,11.650905,1901.2,1900.9,4.947]
[1743203717981,11.650905,1901.2,1901.1,0.13222402]
[1743203718179,11.650905,1901.2,1900.9,4.947]
[1743203718613,11.650905,1901.2,1901.0,0.13223402]
[1743203719128,6.390885,1901.2,1901.0,0.13223402]
[1743203719290,5.25983,1901.2,1901.0,0.13223402]
[1743203720304,0.7907,1901.3,1901.0,5.39260402]
[1743203720637,6.04982,1901.5,1901.1,6.08238]
[1743203720801,11.30907,1901.5,1901.2,0.13298654]
[1743203721143,5.25929,1901.4,1901.1,6.08238]
[1743203721330,5.25929,1901.4,1901.3,0.13297655]
[1743203721528,5.25929,1901.4,1901.2,0.13298654]
[1743203721703,5.25929,1901.4,1901.3,0.13297655]
[1743203722194,5.25929,1901.4,1901.0,6.08274]
[1743203722401,5.25929,1901.4,1901.1,0.13299653]
[1743203722728,6.5032917,1901.4,1901.1,0.13299653]
[1743203723598,5.25929,1901.4,1901.1,0.13299653]
[1743203724406,5.25956,1901.3,1901.1,0.13299653]
[1743203725134,6.05026,1901.3,1900.9,11.03008]
[1743203725331,0.7907,1901.3,1901.2,0.13298654]
[1743203725526,0.7907,1901.3,1901.0,5.26036]
[1743203725731,0.7907,1901.3,1901.2,0.13298654]
[1743203725930,6.06,1901.7,1901.1,5.39307653]
[1743203726131,0.7907,1901.9,1901.5,5.25888]
[1743203726309,6.04877,1901.9,1901.5,6.08138]
[1743203726506,6.04877,1901.9,1901.6,0.13294658]
[1743203727196,11.30686,1901.9,1901.6,0.13294658]
[1743203727410,5.25845,1901.7,1901.6,0.13294658]
[1743203727616,11.30786,1901.7,1901.4,4.947]
[1743203727945,5.25878,1901.6,1901.5,0.13247374]
[1743203729440,6.00998,1901.6,1901.5,0.13247374]
[1743203729642,6.00998,1901.6,1901.0,0.8225]
[1743203729643,2.428043,1901.6,1901.0,0.8225]
[1743203729841,5.25961,1901.3,1901.1,0.1325137]
[1743203730349,10.51937,1901.3,1901.1,0.1325137]
[1743203730514,11.27057,1901.3,1901.1,0.1325137]
[1743203730720,11.27057,1901.3,1900.9,10.20648]
[1743203730919,11.27057,1901.3,1901.2,0.13211742]
[1743203731121,11.27057,1901.3,1900.9,10.20648]
[1743203731459,11.27058,1901.3,1900.9,10.20648]
[1743203731617,11.27058,1901.3,1901.0,0.1321374]
[1743203732047,5.25993,1901.2,1901.0,0.1321374]
[1743203733547,6.01081,1901.3,1901.0,0.1321374]
[1743203734447,5.25984,1901.2,1901.0,0.1321374]
[1743203734617,10.5199,1901.2,1901.0,0.1321374]
[1743203734822,5.26011,1901.1,1901.0,0.1321374]
[1743203735037,5.26011,1901.1,1900.8,5.7613]
[1743203735243,5.26011,1901.1,1900.9,0.13277505]
[1743203735442,5.25984,1901.2,1900.8,11.0222]
[1743203735654,5.25984,1901.2,1900.9,0.13277505]
[1743203735857,5.25984,1901.2,1900.8,11.0222]
[1743203736026,5.25984,1901.2,1900.9,0.13277505]
[1743203736228,5.25984,1901.2,1900.8,12.650522]
[1743203736429,5.25984,1901.2,1900.9,0.13277505]
[1743203736749,5.25984,1901.2,1900.8,12.650522]
[1743203736956,6.01094,1901.3,1901.0,0.13276505]
[1743203737151,5.25983,1901.2,1900.9,5.39333505]